bitfinex/quotes_SOLUSD_20240628
["timestamp","ask_amount","ask_price","bid_price","bid_amount"]
[1719576924304,15.71,146.42,146.36,15.71]
[1719576924707,31.5692,146.43,146.37,15.71]
[1719576925213,31.5692,146.43,146.34,15.8592]
[1719576925214,15.71,146.42,146.36,15.71]
[1719576927630,15.71,146.42,146.34,15.8592]
[1719576927836,15.8592,146.43,146.34,15.8592]
[1719576928030,15.71,146.4,146.3,6.5849]
[1719576928217,15.71,146.39,146.33,15.71]
[1719576928719,15.71,146.4,146.34,15.71]
[1719576929118,15.71,146.4,146.31,26.18824]
[1719576929319,15.71,146.39,146.33,15.71]
[1719576930317,15.71,146.4,146.34,17.07646668]
[1719576930628,20.0,146.42,146.34,15.71]
[1719576930860,15.71,146.4,146.34,15.71]
[1719576931419,15.71,146.4,146.3,96.803084]
[1719576931420,15.71,146.41,146.3,96.803084]
[1719576931618,15.71,146.42,146.36,22.5423]
[1719576932136,15.8592,146.43,146.3,117.363084]
[1719576932437,15.8592,146.43,146.38,22.5413]
[1719576932737,15.8592,146.43,146.37,22.5418]
[1719576933469,15.484,146.47,146.4,15.71]
[1719576933745,20.0,146.45,146.4,15.71]
[1719576934036,20.0,146.45,146.39,15.71]
[1719576934227,35.71,146.45,146.39,15.71]
[1719576934833,15.484,146.47,146.37,22.1042]
[1719576935038,15.484,146.47,146.37,69.2342]
[1719576935223,15.71,146.46,146.39,15.71]
[1719576935540,15.71,146.46,146.4,15.71]
[1719576936116,15.484,146.47,146.34,18.6849]
[1719576936342,15.71,146.43,146.37,15.71]
[1719576936649,15.484,146.47,146.38,15.71]
[1719576936650,15.71,146.44,146.38,15.71]
[1719576937324,15.484,146.47,146.38,15.71]
[1719576937527,15.71,146.44,146.38,15.71]
[1719576939033,15.71,146.43,146.37,15.71]
[1719576939518,20.0,146.46,146.34,6.372]
[1719576939719,15.71,146.44,146.38,15.71]
[1719576939924,15.71,146.43,146.37,15.71]
[1719576940367,15.71,146.42,146.36,15.71]
[1719576940834,81.67,146.46,146.36,15.71]
[1719576941037,15.71,146.42,146.36,15.71]
[1719576941234,15.71,146.41,146.35,15.71]
[1719576941621,15.71,146.41,146.31,18.7254]
[1719576941836,15.71,146.41,146.35,15.71]
[1719576942629,15.71,146.39,146.31,6.4125]
[1719576942846,15.71,146.39,146.33,15.71]
[1719576943346,15.71,146.39,146.31,6.4125]
[1719576943347,15.71,146.39,146.34,15.71]
[1719576943732,15.71,146.39,146.33,15.71]
[1719576943931,15.953,146.41,146.31,6.4125]
[1719576944135,15.953,146.41,146.37,15.71]
[1719576944343,15.953,146.41,146.36,15.71]
[1719576944741,15.953,146.41,146.37,15.71]
[1719576945545,15.953,146.41,146.31,6.4125]
[1719576945841,15.953,146.41,146.36,15.71]
[1719576946736,31.663,146.41,146.35,15.71]
[1719576946935,31.663,146.41,146.31,6.4125]
[1719576946936,15.71,146.4,146.31,6.4125]
[1719576947246,15.71,146.4,146.34,15.71]
[1719576950443,15.953,146.41,146.35,17.07631866]
[1719576950649,31.663,146.41,146.36,1.36625168]
[1719576951335,31.663,146.41,146.35,15.71]
[1719576951538,15.953,146.41,146.36,15.71]
[1719576953062,15.953,146.41,146.31,6.4125]
[1719576953358,15.953,146.41,146.36,15.71]
[1719576953534,6.2153,146.43,146.36,15.71]
[1719576953854,21.9253,146.43,146.36,15.71]
[1719576954231,15.71,146.42,146.31,6.4125]
[1719576954431,15.71,146.41,146.35,15.71]
[1719576955531,15.71,146.41,146.36,1.36626548]
[1719576958056,15.71,146.41,146.35,15.71]
[1719576958235,6.2153,146.43,146.36,1.36624009]
[1719576958558,6.2153,146.43,146.37,17.07609631]
[1719576958730,21.9253,146.43,146.38,1.36600816]
[1719576958931,15.0573,146.44,146.37,15.71]
[1719576959156,15.71,146.43,146.37,15.71]
[1719576960154,15.71,146.42,146.36,15.71]
[1719576961147,15.71,146.41,146.35,15.71]
[1719576962931,15.71,146.41,146.31,6.4125]
[1719576963126,15.71,146.38,146.33,15.71]
[1719576964157,15.71,146.38,146.33,22.5436]
[1719576965164,15.71,146.36,146.31,15.71]
[1719576965735,15.71,146.36,146.3,15.71]
[1719576966154,15.71,146.35,146.28,6.8361]
[1719576966456,15.71,146.35,146.29,15.71]
[1719576967174,15.71,146.34,146.28,22.5461]
[1719576967381,15.71,146.34,146.29,6.8357]
[1719576967649,15.71,146.34,146.29,22.5457]
[1719576969537,15.71,146.34,146.28,22.5461]
[1719576969736,15.71,146.33,146.28,22.5461]
[1719576970162,15.71,146.33,146.28,15.71]
[1719576970759,15.71,146.33,146.27,22.5465]
[1719576970946,15.71,146.33,146.27,6.8365]
[1719576971144,15.71,146.33,146.27,22.5465]
[1719576972856,15.71,146.32,146.27,22.5465]
[1719576973065,15.71,146.32,146.26,6.8369]
[1719576973361,15.71,146.32,146.26,22.5469]
[1719576973760,15.71,146.31,146.26,22.5469]
[1719576973939,15.71,146.31,146.26,6.8369]
[1719576974660,32.1486,146.3,146.24,6.8379]
[1719576974963,32.1486,146.3,146.25,6.8375]
[1719576975859,32.1486,146.3,146.26,6.8369]
[1719576976059,16.4386,146.3,146.27,8.20366144]
[1719576976245,27.2053,146.35,146.28,1.36710632]
[1719576976246,15.455,146.33,146.28,1.36710632]
[1719576976445,15.455,146.37,146.3,15.71]
[1719576976641,15.455,146.37,146.26,6.3612]
[1719576976642,15.455,146.37,146.34,6.8334]
[1719576976843,15.455,146.37,146.32,15.71]
[1719576977554,15.455,146.37,146.33,6.8337]
[1719576977758,31.165,146.37,146.33,6.8337]
[1719576978551,31.165,146.37,146.31,15.71]
[1719576978753,15.455,146.37,146.26,37.8212]
[1719576979059,15.455,146.37,146.31,6.8344]
[1719576979458,15.455,146.37,146.32,6.8342]
[1719576979865,15.455,146.37,146.33,1.36664313]
[1719576980157,16.4992,146.41,146.35,6.8325]
[1719576980378,16.4992,146.41,146.35,6.8327]
[1719576980554,16.4992,146.41,146.34,6.8332]
[1719576980950,16.4992,146.41,146.35,6.8328]
[1719576981369,16.4992,146.41,146.29,43.7729]
[1719576981576,16.4992,146.41,146.3,20.0]
[1719576981746,16.4992,146.41,146.29,43.7729]
[1719576981951,20.0,146.4,146.32,6.8342]
[1719576982867,20.0,146.4,146.33,6.8337]
[1719576983641,20.0,146.4,146.32,6.8342]
[1719576984466,20.0,146.4,146.31,6.8347]
[1719576984764,31.46,146.39,146.29,6.8354]
[1719576984976,20.0,146.38,146.29,6.8354]
[1719576985154,20.0,146.38,146.3,6.8352]
[1719576985349,6.4414,146.37,146.3,6.8352]
[1719576985549,6.4414,146.37,146.27,20.0]
[1719576985550,6.4414,146.37,146.31,6.8348]
[1719576985972,6.4414,146.37,146.26,18.6741]
[1719576985973,16.3081,146.36,146.26,18.6741]
[1719576986147,16.3081,146.36,146.3,6.8351]
[1719576988565,16.3081,146.36,146.29,6.8355]
[1719576988771,57.4181,146.36,146.24,5.4118015]
[1719576988952,81.67,146.35,146.25,6.8375]
[1719576989153,15.3872,146.34,146.25,6.8375]
[1719576989366,20.0,146.33,146.25,6.8375]
[1719576989767,6.6021,146.32,146.21,27.394576]
[1719576989971,6.6021,146.32,146.28,6.8359]
[1719576990161,15.3872,146.34,146.21,27.394576]
[1719576990369,15.3872,146.34,146.3,6.8352]
[1719576990752,15.3872,146.34,146.31,6.8346]
[1719576991570,15.3872,146.34,146.24,12.3129]
[1719576991571,15.3872,146.34,146.32,8.20104139]
[1719576991759,15.3872,146.34,146.25,7.44189029]
[1719576991956,15.3872,146.34,146.26,20.0]
[1719576992152,15.3872,146.34,146.31,6.8347]
[1719576992351,15.3872,146.34,146.26,20.0]
[1719576992774,15.3872,146.34,146.28,6.8358]
[1719576995061,15.3872,146.34,146.25,1.3670206]
[1719576995256,15.3872,146.34,146.28,6.8361]
[1719576995577,15.3872,146.34,146.25,1.3670206]
[1719576995578,15.3872,146.34,146.29,6.8355]
[1719576996000,15.3872,146.34,146.28,6.836]
[1719576997172,15.3872,146.34,146.27,6.8365]
[1719576998174,20.0,146.33,146.27,6.8365]
[1719576998978,20.0,146.33,146.28,6.836]
[1719576999287,15.3872,146.34,146.22,58.1537]
[1719576999482,15.3872,146.34,146.31,6.8344]
[1719576999776,15.3872,146.34,146.31,6.8345]
[1719577001571,15.3872,146.34,146.3,6.8351]
[1719577001761,15.3872,146.34,146.25,31.46]
[1719577001762,15.3872,146.34,146.31,8.20114708]
[1719577001960,15.457,146.38,146.32,1.36674279]
[1719577002159,15.457,146.38,146.33,8.20001937]
[1719577002364,15.457,146.38,146.34,1.36651108]
[1719577002777,15.457,146.38,146.27,12.3129]
[1719577003087,20.0,146.37,146.31,6.8343]
[1719577003587,20.0,146.37,146.32,6.8341]
[1719577003963,20.0,146.37,146.28,1.36664584]
[1719577004285,20.0,146.37,146.3,6.8349]
[1719577004469,20.0,146.37,146.31,8.20137047]
[1719577004668,20.0,146.37,146.31,6.8347]
[1719577005266,20.0,146.37,146.32,1.36666137]
[1719577005789,20.0,146.37,146.29,6.8355]
[1719577005975,20.0,146.37,146.3,6.8352]
[1719577006181,15.457,146.38,146.34,6.8331]
[1719577006484,15.457,146.38,146.29,6.0092]
[1719577006788,15.457,146.38,146.34,6.833]
[1719577006987,15.457,146.38,146.33,6.8337]
[1719577007291,15.457,146.38,146.32,6.8342]
[1719577007466,15.457,146.38,146.29,6.0092]
[1719577007790,15.457,146.38,146.31,6.8347]
[1719577007965,15.457,146.38,146.32,8.20073474]
[1719577008167,15.457,146.38,146.27,6.8363]
[1719577008473,20.0,146.37,146.25,6.0092]
[1719577008669,20.0,146.37,146.3,6.8351]
[1719577008983,20.0,146.37,146.31,6.8346]
[1719577009187,20.0,146.37,146.32,6.8342]
[1719577009396,20.0,146.37,146.25,6.0092]
[1719577009697,20.0,146.37,146.29,6.8356]
[1719577010052,20.0,146.37,146.3,6.8351]
[1719577010495,20.0,146.37,146.25,6.0092]
[1719577010798,20.0,146.37,146.26,20.0]
[1719577011096,20.0,146.37,146.31,6.8346]
[1719577011796,20.0,146.37,146.26,20.0]
[1719577011967,20.0,146.37,146.29,6.8354]
[1719577012169,20.0,146.37,146.26,20.0]
[1719577012170,20.0,146.37,146.28,6.836]
[1719577012365,20.0,146.37,146.27,6.8362]
[1719577012672,20.0,146.37,146.28,6.8359]
[1719577012894,20.0,146.37,146.25,6.0092]
[1719577012895,16.2901,146.35,146.26,1.36694807]
[1719577013099,16.2901,146.35,146.26,8.20374807]
[1719577013309,16.2901,146.35,146.27,6.8366]
[1719577013477,16.2901,146.35,146.28,6.8361]
[1719577013801,16.2901,146.35,146.29,6.8356]
[1719577014493,16.2901,146.35,146.3,6.8351]
[1719577014710,15.74,146.34,146.29,6.8356]
[1719577015017,15.74,146.33,146.3,6.835]
[1719577015310,16.2901,146.35,146.3,6.835]
[1719577015311,15.74,146.34,146.3,6.835]
[1719577016017,15.74,146.34,146.29,6.8355]
[1719577016905,16.2901,146.35,146.28,6.836]
[1719577017114,15.74,146.33,146.28,23.1261]
[1719577018101,15.74,146.33,146.29,6.8356]
[1719577019732,15.74,146.33,146.28,16.2901]
[1719577019733,16.2901,146.35,146.3,17.10682845]
[1719577020395,16.2901,146.35,146.33,6.8338]
[1719577020617,16.2901,146.35,146.32,6.8341]
[1719577020996,16.2901,146.35,146.31,6.8347]
[1719577021195,16.2901,146.35,146.31,22.5747]
[1719577021418,16.2901,146.35,146.32,1.36661672]
[1719577021608,15.4087,146.39,146.3,15.74]
[1719577021898,15.74,146.36,146.31,15.74]
[1719577022120,15.74,146.36,146.32,6.834]
[1719577024035,15.74,146.34,146.3,6.8351]
[1719577024334,15.74,146.34,146.31,1.36659419]
[1719577024502,15.74,146.34,146.3,6.8351]
[1719577025328,15.74,146.34,146.31,8.20142874]
[1719577025706,15.74,146.34,146.31,6.8347]
[1719577026239,15.74,146.35,146.31,6.8347]
[1719577027034,15.74,146.35,146.3,6.8351]
[1719577027735,15.74,146.35,146.31,1.36673152]
[1719577028034,15.74,146.35,146.3,6.8351]
[1719577028603,15.4087,146.39,146.31,1.36672701]
[1719577028811,15.74,146.35,146.3,6.8351]
[1719577029655,15.74,146.34,146.3,6.8351]
[1719577031253,15.4087,146.39,146.31,1.3667285]
[1719577031553,15.74,146.37,146.33,6.8335]
[1719577031729,15.74,146.38,146.32,22.5741]
[1719577032054,15.74,146.37,146.32,6.8341]
[1719577032226,15.4087,146.39,146.33,1.36656404]
[1719577032852,15.74,146.37,146.33,8.20026404]
[1719577033059,15.4087,146.39,146.34,6.8331]
[1719577033357,15.74,146.38,146.35,1.36634442]
[1719577033535,15.4087,146.39,146.32,15.74]
[1719577033737,15.4087,146.39,146.34,6.833]
[1719577033738,31.1487,146.39,146.34,6.833]
[1719577034558,15.4087,146.39,146.31,16.2901]
[1719577034713,15.4087,146.39,146.37,6.8315]
[1719577035858,15.4087,146.39,146.36,6.8323]
[1719577038057,15.4087,146.39,146.31,16.2901]
[1719577038224,15.74,146.37,146.32,15.74]
[1719577039046,15.4087,146.39,146.33,17.10638543]
[1719577039351,15.4087,146.39,146.34,15.74]
[1719577039557,31.1487,146.39,146.34,6.8331]
[1719577039920,15.74,146.38,146.34,6.8331]
[1719577040532,15.74,146.38,146.32,15.74]
[1719577041468,16.0968,146.43,146.37,6.832]
[1719577041740,16.0968,146.43,146.34,15.74]
[1719577041741,20.0,146.42,146.34,15.74]
[1719577041943,15.74,146.4,146.31,16.2901]
[1719577042120,15.74,146.4,146.36,6.832]
[1719577044947,20.0,146.42,146.31,16.2901]
[1719577045146,15.74,146.41,146.32,20.0]
[1719577045445,15.74,146.41,146.35,15.74]
[1719577045755,16.0968,146.43,146.37,15.74]
[1719577045929,15.74,146.42,146.36,15.74]
[1719577050248,15.74,146.41,146.34,15.74]
[1719577050446,15.74,146.41,146.35,15.74]
[1719577050952,15.74,146.42,146.36,15.74]
[1719577051738,15.74,146.42,146.32,5.38184961]
[1719577051940,15.74,146.41,146.35,15.74]
[1719577052445,16.0968,146.43,146.36,15.74]
[1719577052651,15.74,146.42,146.33,20.0]
[1719577052955,15.74,146.42,146.36,15.74]
[1719577055241,15.74,146.41,146.32,20.0]
[1719577055552,15.74,146.41,146.35,15.74]
[1719577055954,16.0968,146.43,146.35,15.74]
[1719577056153,16.0968,146.43,146.32,20.0]
[1719577056349,31.8368,146.43,146.37,15.74]
[1719577062243,31.8368,146.43,146.32,20.0]
[1719577062244,16.0968,146.43,146.39,15.74]
[1719577062659,15.8056,146.47,146.39,15.74]
[1719577062976,15.74,146.45,146.39,15.74]
[1719577063948,15.8056,146.47,146.39,15.74]
[1719577064147,15.74,146.45,146.39,15.74]
[1719577064371,15.74,146.44,146.37,5.58515547]
[1719577064570,15.74,146.43,146.35,12.3129]
[1719577064749,15.74,146.43,146.37,15.74]
[1719577065084,15.74,146.43,146.35,12.3129]
[1719577065258,15.74,146.42,146.36,15.74]
[1719577068575,15.74,146.42,146.33,11.94909659]
[1719577068576,15.74,146.43,146.37,15.74]
[1719577069980,15.74,146.42,146.36,15.74]
[1719577071982,15.8056,146.47,146.36,15.74]
[1719577072168,15.74,146.42,146.36,15.74]
[1719577072496,16.3867,146.41,146.31,28.603]
[1719577072668,16.3867,146.41,146.33,15.74]
[1719577072669,35.74,146.4,146.33,15.74]
[1719577072862,15.74,146.4,146.35,15.74]
[1719577073178,16.3867,146.41,146.36,1.36624806]
[1719577073382,32.1267,146.41,146.36,1.36624806]
[1719577074468,16.3867,146.41,146.36,15.74]
[1719577078068,15.6824,146.44,146.4,15.74]
[1719577078273,15.6824,146.44,146.36,6.5953]
[1719577078476,15.74,146.43,146.37,15.74]
[1719577080165,15.74,146.43,146.34,27.3705]
[1719577080366,15.6824,146.44,146.34,27.3705]
[1719577080367,15.74,146.42,146.36,15.74]
[1719577081072,15.74,146.42,146.34,27.3705]
[1719577081275,15.74,146.41,146.35,35.74]
[1719577081787,15.74,146.42,146.36,15.74]
[1719577081998,15.6824,146.44,146.36,15.74]
[1719577082200,15.74,146.42,146.36,15.74]
[1719577083565,15.74,146.39,146.31,17.68850788]
[1719577083778,15.74,146.39,146.31,12.3129]
[1719577083970,15.74,146.39,146.34,15.74]
[1719577084170,78.6424,146.44,146.34,15.74]
[1719577084488,78.6424,146.44,146.35,15.74]
[1719577084489,15.74,146.41,146.35,15.74]
[1719577084788,20.0,146.43,146.34,15.74]
[1719577084789,15.74,146.4,146.34,15.74]
[1719577084994,15.74,146.39,146.34,15.74]
[1719577085573,15.74,146.39,146.33,15.74]
[1719577085997,15.74,146.39,146.34,1.36652236]
[1719577086507,20.0,146.43,146.36,6.8324]
[1719577086666,15.74,146.4,146.36,6.8324]
[1719577087103,15.74,146.4,146.34,15.74]
[1719577087279,15.74,146.39,146.33,15.74]
[1719577087989,15.74,146.39,146.35,6.8325]
[1719577088191,15.74,146.39,146.33,15.74]
[1719577088399,15.74,146.4,146.34,15.74]
[1719577088778,119.7524,146.44,146.31,23.881501]
[1719577088779,15.6824,146.44,146.36,15.74]
[1719577088992,15.74,146.42,146.36,15.74]
[1719577090076,15.6824,146.44,146.36,15.74]
[1719577090494,15.74,146.42,146.36,15.74]
[1719577091274,15.74,146.39,146.31,23.881501]
[1719577091470,15.74,146.39,146.33,15.74]
[1719577091674,15.74,146.41,146.34,15.74]
[1719577091880,15.74,146.41,146.35,15.74]
[1719577092674,15.74,146.41,146.36,6.8323]
[1719577092879,15.74,146.4,146.36,6.8323]
[1719577095398,15.74,146.38,146.32,15.74]
[1719577097385,15.74,146.38,146.34,6.8331]
[1719577100891,61.67,146.43,146.34,6.8331]
[1719577101205,15.74,146.38,146.34,6.8331]
[1719577104100,15.6824,146.44,146.36,6.8321]
[1719577104308,20.0,146.43,146.37,6.8318]
[1719577104496,15.74,146.41,146.36,6.8322]
[1719577105009,15.74,146.41,146.35,15.74]
[1719577107012,15.74,146.4,146.34,15.74]
[1719577107403,15.74,146.41,146.35,15.74]
[1719577109505,15.74,146.4,146.34,15.74]
[1719577110308,15.74,146.41,146.35,15.74]
[1719577111914,15.74,146.41,146.31,23.881501]
[1719577112115,15.74,146.41,146.32,20.0]
[1719577113619,15.74,146.4,146.32,20.0]
[1719577114919,20.0,146.43,146.32,20.0]
[1719577115145,15.74,146.4,146.32,20.0]
[1719577116620,15.74,146.39,146.32,20.0]
[1719577116996,15.74,146.39,146.31,23.881501]
[1719577117211,15.74,146.37,146.32,15.74]
[1719577117407,61.11,146.43,146.32,15.74]
[1719577117614,15.74,146.38,146.33,15.74]
[1719577117813,15.74,146.39,146.33,15.74]
[1719577119406,15.74,146.39,146.31,23.881501]
[1719577119407,20.0,146.43,146.31,23.881501]
[1719577119602,15.74,146.38,146.32,15.74]
[1719577121023,15.74,146.38,146.34,6.833]
[1719577124512,15.74,146.37,146.34,6.833]
[1719577127027,15.74,146.37,146.31,39.621501]
[1719577127709,15.74,146.37,146.31,15.74]
[1719577127912,15.74,146.37,146.32,15.74]
[1719577129033,15.74,146.37,146.34,6.8332]
[1719577129634,15.74,146.37,146.33,6.8336]
[1719577131333,15.74,146.35,146.31,6.8344]
[1719577131719,15.74,146.35,146.27,5.62324387]
[1719577131720,15.74,146.35,146.27,33.00616687]
[1719577131918,15.74,146.34,146.27,5.62324387]
[1719577132125,15.74,146.34,146.28,15.74]
[1719577132328,15.74,146.37,146.27,15.74]
[1719577132512,15.74,146.33,146.26,27.385227]
[1719577132713,15.74,146.33,146.29,6.8354]
[1719577133015,15.74,146.32,146.26,35.74]
[1719577133330,15.74,146.3,146.26,6.837]
[1719577133538,15.74,146.31,146.28,6.8361]
[1719577137133,15.74,146.31,146.25,15.74]
[1719577137937,61.11,146.36,146.25,15.74]
[1719577138126,15.74,146.31,146.26,15.74]
[1719577138435,15.74,146.31,146.25,15.74]
[1719577138816,15.74,146.31,146.29,6.8357]
[1719577139020,16.2489,146.35,146.28,6.836]
[1719577139323,20.0,146.34,146.27,15.74]
[1719577139525,15.74,146.33,146.27,15.74]
[1719577139928,20.0,146.34,146.27,15.74]
[1719577140116,15.74,146.33,146.27,15.74]
[1719577140329,15.74,146.33,146.3,6.8351]
[1719577141147,15.74,146.33,146.29,6.8355]
[1719577141354,15.74,146.32,146.29,6.8355]
[1719577141951,15.74,146.32,146.3,6.8352]
[1719577142247,20.0,146.34,146.29,6.8356]
[1719577142444,15.74,146.33,146.25,6.1479]
[1719577142659,15.74,146.34,146.31,6.8346]
[1719577143321,31.0352,146.41,146.33,15.74]
[1719577143522,31.0352,146.41,146.34,15.74]
[1719577143523,15.74,146.4,146.34,15.74]
[1719577143830,15.2952,146.41,146.37,6.8318]
[1719577144351,15.2952,146.41,146.34,15.74]
[1719577144844,15.2952,146.41,146.33,15.74]
[1719577149450,15.2952,146.41,146.34,17.10633714]
[1719577150356,15.74,146.42,146.36,15.74]
[1719577150647,15.74,146.42,146.35,15.74]
[1719577150859,15.74,146.41,146.35,15.74]
[1719577151271,16.6457,146.45,146.32,22.592]
[1719577151272,15.74,146.42,146.36,15.74]
[1719577153034,16.6457,146.45,146.35,15.74]
[1719577153235,15.74,146.41,146.32,15.74]
[1719577153449,15.74,146.42,146.36,15.74]
[1719577153660,15.74,146.41,146.35,15.74]
[1719577154044,16.6457,146.45,146.35,15.74]
[1719577154239,15.74,146.41,146.35,15.74]
[1719577155747,16.6457,146.45,146.36,15.74]
[1719577155954,15.74,146.42,146.36,15.74]
[1719577156254,16.6457,146.45,146.37,15.74]
[1719577156440,15.74,146.44,146.38,15.74]
[1719577157162,16.6457,146.45,146.38,15.74]
[1719577157461,16.6457,146.45,146.36,18.9367]
[1719577157462,15.74,146.44,146.37,15.74]
[1719577158375,15.74,146.43,146.37,15.74]
[1719577158535,15.74,146.42,146.36,15.74]
[1719577158745,15.74,146.42,146.33,38.6984]
[1719577158959,15.74,146.42,146.36,15.74]
[1719577159656,15.74,146.42,146.33,38.6984]
[1719577159862,16.6457,146.45,146.35,15.74]
[1719577160064,15.74,146.42,146.36,15.74]
[1719577160356,20.0,146.44,146.33,38.6984]
[1719577160357,15.74,146.39,146.33,18.6984]
[1719577160564,35.74,146.44,146.34,15.74]
[1719577160731,15.74,146.4,146.34,15.74]
[1719577160931,15.74,146.4,146.33,6.3855]
[1719577160932,35.74,146.44,146.35,15.74]
[1719577161143,82.96,146.44,146.35,15.74]
[1719577161337,15.74,146.42,146.36,15.74]
[1719577161547,15.74,146.41,146.36,15.74]
[1719577161754,20.0,146.44,146.36,15.74]
[1719577161946,15.74,146.42,146.36,15.74]
[1719577162346,15.74,146.42,146.33,6.3855]
[1719577162549,15.74,146.42,146.36,15.74]
[1719577165649,15.74,146.41,146.35,15.74]
[1719577166051,15.74,146.38,146.32,15.74]
[1719577166282,15.74,146.38,146.32,31.48]
[1719577166478,6.1833,146.42,146.33,15.74]
[1719577166647,15.74,146.39,146.33,15.74]
[1719577166970,15.74,146.4,146.32,15.74]
[1719577167154,15.74,146.4,146.34,15.74]
[1719577167553,20.0,146.41,146.37,6.832]
[1719577167772,15.74,146.4,146.37,6.832]
[1719577167972,15.74,146.4,146.34,15.74]
[1719577170571,15.74,146.4,146.32,15.74]
[1719577172249,15.74,146.38,146.32,15.74]
[1719577172453,15.74,146.39,146.33,15.74]
[1719577172761,15.74,146.39,146.32,15.74]
[1719577172962,15.74,146.39,146.33,15.74]
[1719577173167,6.1833,146.42,146.33,15.74]
[1719577173371,15.74,146.39,146.36,6.8323]
[1719577173954,15.74,146.39,146.35,6.8329]
[1719577174177,15.74,146.39,146.33,15.74]
[1719577174856,6.1833,146.42,146.32,15.74]
[1719577175210,15.74,146.39,146.34,15.74]
[1719577175474,6.1833,146.42,146.34,15.74]
[1719577175475,15.74,146.4,146.34,15.74]
[1719577176086,15.74,146.39,146.33,15.74]
[1719577176460,15.74,146.39,146.34,15.74]
[1719577177167,15.74,146.39,146.32,15.74]
[1719577177551,31.4276,146.39,146.32,15.74]
[1719577177865,31.4276,146.39,146.29,11.9453015]
[1719577177866,15.74,146.36,146.29,17.39856124]
[1719577178067,15.74,146.36,146.31,15.74]
[1719577178378,15.74,146.37,146.31,31.48]
[1719577179383,15.74,146.37,146.34,6.833]
[1719577179574,15.74,146.37,146.31,31.48]
[1719577179769,15.6876,146.39,146.33,15.74]
[1719577179974,31.4276,146.39,146.33,15.74]
[1719577180287,31.4276,146.39,146.36,6.8323]
[1719577180477,31.4276,146.39,146.35,6.8327]
[1719577180681,31.4276,146.39,146.36,6.8323]
[1719577180861,31.4276,146.39,146.35,6.8328]
[1719577181187,31.4276,146.39,146.33,15.74]
[1719577183763,15.1125,146.43,146.36,15.74]
[1719577183961,35.74,146.42,146.32,12.3129]
[1719577184168,15.74,146.41,146.35,15.74]
[1719577184385,20.0,146.42,146.35,15.74]
[1719577184563,15.74,146.41,146.35,15.74]